Cogmind - Beta 13 X1 @@@ ROGUE MODE // 2023.07.28 @ 17:40:12 Player: WayneKnight Result: Destroyed by S-10 Pest with Light Assault Rifle Performance ------------- Evolutions (1) 500 Regions Visited (6) 1200 Robots Destroyed (62) 310 Value Destroyed (1827) 1827 Prototype IDs (6) 120 Alien Tech Used (0) 0 Bonus (135) 135 TOTAL SCORE: 4092 Bonus ------- Follower Combat Kills 135 Cogmind --------- Core Integrity 0/400 Matter 500/500 Energy 232/280 System Corruption 0% Temperature Cool (-52) Movement Treading (160) Location -8/Mines Parts ------- > --- POWER (1) -------- Heavy Ion Engine > --- PROPULSION (2) --- Light Treads Light Treads > --- UTILITY (4) ------ Cryofiber Web Large Storage Unit High-capacity Matter Pod Advanced Targeting Computer > --- WEAPON (2) ------- Heavy EM Pulse Gun Heavy EM Pulse Gun > --- INVENTORY (15) --- Improved Ion Engine Heavy Ion Engine Light Nuclear Core Light Treads Aluminum Leg Combat Airjet Improved Sensor Array Launcher Guidance Computer Mini Grenade Launcher Datajack Peak State ------------ > --- POWER ------------ Light Angular Momentum Engine > --- PROPULSION ------- Light Treads Light Treads > --- UTILITY ---------- Large Storage Unit High-capacity Matter Pod Advanced Targeting Computer Light Armor Plating > --- WEAPON ----------- Heavy Assault Rifle Improved Assault Rifle > --- INVENTORY -------- Improved Ion Engine Heavy Ion Engine Heavy Ion Engine Light Treads Light Treads Combat Airjet Cryofiber Web Improved Sensor Array Launcher Guidance Computer Heavy EM Pulse Gun Heavy EM Pulse Gun Autogun Mini Grenade Launcher Datajack [Rating: 21] Favorites ----------- Power Improved Ion Engine Engine Improved Ion Engine Propulsion Light Treads Treads Light Treads Leg Aluminum Leg Wheel Compact Wheel Utility Large Storage Unit Device Tractor Beam Storage Large Storage Unit Processor Advanced Targeting Computer Protection Medium Armor Plating Weapon Autogun Energy Gun Heavy EM Pulse Gun Ballistic Gun Autogun Ballistic Cannon Improved Light Cannon Launcher Mini Grenade Launcher Build | -11 -10 -10 -9 -9 -9 -8 ------- Run | Jun Mat Min Mat Min Exi Min Slots Evolved 2 | . . . 2 . . . Power . | . . . . . . . Propulsion . | . . . . . . . Utility 2 | . . . 2 . . . Weapon . | . . . . . . . Parts Attached 64 | 2 15 1 30 6 . 10 Power 5 | . . 1 2 . . 2 Engine 5 | . . 1 2 . . 2 Core . | . . . . . . . Reactor . | . . . . . . . Propulsion 14 | 2 4 . 6 1 . 1 Treads 13 | 1 4 . 6 1 . 1 Leg . | . . . . . . . Wheel 1 | 1 . . . . . . Hover . | . . . . . . . Flight . | . . . . . . . Utility 19 | . 3 . 13 2 . 1 Device 2 | . . . 1 . . 1 Storage 4 | . 2 . 2 . . . Processor 2 | . . . 1 1 . . Hackware . | . . . . . . . Protection 11 | . 1 . 9 1 . . Artifact . | . . . . . . . Weapon 26 | . 8 . 9 3 . 6 Energy Gun 4 | . 2 . . . . 2 Energy Cannon . | . . . . . . . Ballistic Gun 17 | . 4 . 8 2 . 3 Ballistic Cannon 2 | . 2 . . . . . Launcher 3 | . . . 1 1 . 1 Special Weapon . | . . . . . . . Impact Weapon . | . . . . . . . Slashing Weapon . | . . . . . . . Piercing Weapon . | . . . . . . . Special Melee Weapon . | . . . . . . . Unidentified Prototypes 1 | . . . 1 . . . Parts Lost 12 | . . . 4 2 . 6 Power 1 | . . . . . . 1 Propulsion 2 | . . . . 1 . 1 Utility 5 | . . . 4 . . 1 Weapon 4 | . . . . 1 . 3 Highest Loss Streak 3 | . . . 1 1 . 3 To Critical Strikes . | . . . . . . . Average Slot Usage (%) 98 | . 98 100 98 100 100 96 Engine 11 | . 14 14 9 11 11 11 Treads 23 | . 25 28 22 22 22 22 Device 1 | . . . 2 . . 6 Storage 21 | . 21 14 22 22 22 22 Processor 5 | . . . 2 19 11 11 Protection 11 | . 5 14 16 2 11 4 Energy Gun 3 | . 19 . . . . 5 Ballistic Gun 18 | . 6 28 20 21 22 12 Naked Turns . | . . . . . . . Heaviest Build 52 | 12 35 32 52 40 40 42 Greatest Support 40 | 16 40 40 40 40 40 40 Greatest Overweight (x) 2 | . 1 . 2 1 . 1 Average Overweight (x) . | . . . . . . . Largest Inventory Capacity 15 | 8 15 15 15 15 15 15 Average Capacity 14 | 8 11 15 15 15 15 15 Most Carried 15 | 6 15 15 15 15 14 14 Average Carried 13 | 6 9 15 14 14 14 11 Final Capacity 15 | 8 15 15 15 15 15 15 Final Carried 15 | 6 15 15 15 14 14 10 Class Distribution -------------------- 88% | Mutant 11% | Scavenger-Mutant Dominant Class ---------------- Mutant | -10/Materials Mutant | -10/Mines Mutant | -9/Materials Mutant | -9/Mines Mutant | -9/Exiles Mutant | -8/Mines Resources | -11 -10 -10 -9 -9 -9 -8 ----------- Run | Jun Mat Min Mat Min Exi Min Matter Collected 2179 | 228 396 130 874 313 . 238 Remotely 260 | . . . 260 . . . Salvage Created 2247 | 111 452 67 1044 264 . 309 Parts 131 | 3 21 8 67 17 . 15 Haulers Intercepted 2 | . . . 2 . . . Recyclers Shooed 3 | 1 1 . 1 . . . Parts Field Recycled . | . . . . . . . Retrieved Matter . | . . . . . . . Parts Self-Destructed . | . . . . . . . Prevented . | . . . . . . . Kills | -11 -10 -10 -9 -9 -9 -8 ------- Run | Jun Mat Min Mat Min Exi Min Combat Hostiles Destroyed 55 | . 13 2 17 14 . 9 Guns 45 | . 6 2 17 13 . 7 Cannons 6 | . 6 . . . . . AOE 4 | . 1 . . 1 . 2 Classes Destroyed 12 | 2 4 . 3 2 . 1 Worker 2 | . 1 1 . . . . Tunneler 1 | 1 . . . . . . Hauler 2 | . . . 2 . . . Recycler 2 | 1 . . 1 . . . Watcher 6 | . 1 . 5 . . . Swarmer 11 | . 3 . 3 3 . 2 Grunt 24 | . 10 2 4 3 . 5 Duelist 2 | . . . 1 . . 1 Sentry 9 | . . . 9 . . . Demolisher 2 | . . . . 2 . . Hunter 1 | . . . . . . 1 Assembled 6 | . . . . 6 . . Best Kill Streak 8 | 2 5 3 4 8 . 3 Combat Bots Only 8 | . 5 2 2 8 . 3 Max Kills in Single Turn 2 | 1 2 2 1 1 . 1 Gunslinging 1 | . . 1 . . . . Exploded 1 | . 1 . . 1 . 1 Melee . | . . . . . . . Uniques/NPCs Destroyed . | . . . . . . . Combat | -11 -10 -10 -9 -9 -9 -8 -------- Run | Jun Mat Min Mat Min Exi Min Damage Taken 3269 | . 457 43 1126 832 . 811 Core 511 | . 89 20 172 123 . 107 Absorbed by Shields . | . . . . . . . Redirected to Shielding 5 | . . 3 2 . . . Regen/Repaired (Parts) 262 | . 191 . 71 . . . Core Remaining (%) 78 | 100 . 56 . . . . Volleys Fired 207 | 8 36 3 93 30 . 37 Largest 2 | 2 2 2 2 2 . 2 Hottest 90 | 60 90 46 46 46 . 90 Shots Fired 391 | 16 73 7 184 58 . 53 Gun 362 | 16 52 7 182 56 . 49 Cannon 21 | . 21 . . . . . Launcher 8 | . . . 2 2 . 4 Special . | . . . . . . . Kinetic 330 | 8 43 7 182 56 . 34 Thermal 8 | 8 . . . . . . Explosive 8 | . . . 2 2 . 4 Electromagnetic 45 | . 30 . . . . 15 Robot Hit Streak 23 | 6 10 6 23 23 . 22 Robot Miss Streak 6 | 3 4 1 6 2 . 2 Penetration Max . | . . . . . . . Secondary Targets 8 | . . 1 2 2 . 3 Max Gunslinging Chain 1 | . . 1 1 1 . 1 Shots Hit Robots 263 | 10 43 6 117 44 . 43 Core Hits 108 | 3 20 5 40 24 . 16 Critical Kills 1 | . . . . . . 1 Critical Parts Destroyed . | . . . . . . . Critical Strikes 2 | . . . . . . 2 Destroy 1 | . . . . . . 1 Corrupt 1 | . . . . . . 1 Melee Attacks . | . . . . . . . Impact . | . . . . . . . Slashing . | . . . . . . . Piercing . | . . . . . . . Sneak Attacks . | . . . . . . . Combat Hostiles . | . . . . . . . Follow-up Attacks . | . . . . . . . Damage Inflicted 4884 | 97 927 111 1918 779 . 1052 Guns 3714 | 97 392 83 1868 675 . 599 Cannons 317 | . 317 . . . . . Explosions 787 | . 199 . 39 96 . 453 Melee . | . . . . . . . Ramming 66 | . 19 28 11 8 . . Kinetic 3528 | 53 418 83 1868 675 . 431 Thermal 243 | 44 199 . . . . . Explosive 588 | . . . 39 96 . 453 Electromagnetic 459 | . 291 . . . . 168 Impact . | . . . . . . . Slashing . | . . . . . . . Piercing . | . . . . . . . Highest Corruption 2 | . 2 2 . . . . Average Corruption 2 | . 2 2 . . . . Corruption Purged . | . . . . . . . Corruption Blocked . | . . . . . . . Effects 25 | . 9 16 . . . . Message Errors 5 | . 1 4 . . . . Matter Fused 5 | . 1 4 . . . . Heat Flow Errors 2 | . 1 1 . . . . Energy Discharges 5 | . 3 2 . . . . Parts Rejected 1 | . 1 . . . . . Data Loss (minor) 4 | . 1 3 . . . . Misfires 2 | . 1 1 . . . . Alerts 1 | . . 1 . . . . Overload Shots . | . . . . . . . Overflow Damage 34 | . . . . 14 . 20 Projectiles . | . . . . . . . Explosions 34 | . . . . 14 . 20 Melee . | . . . . . . . Knockbacks 2 | . 2 . . . . . Impact . | . . . . . . . Kinetic 2 | . 2 . . . . . Secondary . | . . . . . . . Self-Inflicted Damage 175 | . 33 . 46 . . 96 Shots 7 | . 2 . 1 . . 4 Rammed 13 | . 3 3 4 3 . . Targets Rammed 14 | . 3 4 4 3 . . Kicked . | . . . . . . . Crushed 1 | . . 1 . . . . Highest Temperature 216 | 40 216 199 60 24 . 24 Average Temperature 30 | 22 59 67 14 3 . 12 Received Heat Transfer 950 | . 216 24 432 62 . 216 Siege Activations . | . . . . . . . Robots Corrupted . | . . . . . . . Combat Hostiles . | . . . . . . . Parts Fried 2 | . 1 . . . . 1 Impact Corruptions . | . . . . . . . Robots Melted . | . . . . . . . Combat Hostiles . | . . . . . . . Parts Melted . | . . . . . . . Heat Transferred 450 | 100 350 . . . . . Parts Sabotaged . | . . . . . . . Parts Stolen . | . . . . . . . Parts Stripped . | . . . . . . . Power Chain Reactions 3 | . 3 . . . . . Missiles Intercepted . | . . . . . . . Alert | -11 -10 -10 -9 -9 -9 -8 ------- Run | Jun Mat Min Mat Min Exi Min Peak Influence 321 | 10 183 140 321 269 . 173 Initial 70 | . 6 21 . 70 . . Average 96 | 4 60 57 120 90 . 94 Maximum Alert Level 1 | . . . 1 1 . . Low Security (%) 93 | 100 100 100 93 80 . 100 Level 1 6 | . . . 6 19 . . Level 2 . | . . . . . . . Level 3 . | . . . . . . . Level 4 . | . . . . . . . Level 5 . | . . . . . . . High Security . | . . . . . . . Max Security . | . . . . . . . Squads Dispatched 3 | . 2 1 . . . . Investigation 1 | . 1 . . . . . Extermination . | . . . . . . . Reinforcement 1 | . 1 . . . . . Assault 1 | . . 1 . . . . Garrison . | . . . . . . . Intercept . | . . . . . . . Searches Triggered . | . . . . . . . Construction Impeded . | . . . . . . . Haulers Reinforced . | . . . . . . . Active Scanning Responses . | . . . . . . . Cargo Convoy Interrupts . | . . . . . . . Stealth | -11 -10 -10 -9 -9 -9 -8 --------- Run | Jun Mat Min Mat Min Exi Min Distress Signals 3 | . 1 . 2 . . . Communications Jammed . | . . . . . . . Distress Signals . | . . . . . . . Times Spotted 114 | . 25 5 46 28 . 10 Peak Tracking Total 15 | . 4 4 5 15 . 3 Tactical Retreats 13 | . 1 . 12 . . . Traps | -11 -10 -10 -9 -9 -9 -8 ------- Run | Jun Mat Min Mat Min Exi Min Traps Triggered 4 | . 2 . 2 . . . Indirectly . | . . . . . . . Trap Hack Attempts . | . . . . . . . Triggered . | . . . . . . . Disarmed . | . . . . . . . Reprogrammed . | . . . . . . . Reused . | . . . . . . . Traps Extracted . | . . . . . . . Installed . | . . . . . . . Triggered . | . . . . . . . Machines | -11 -10 -10 -9 -9 -9 -8 ---------- Run | Jun Mat Min Mat Min Exi Min Machines Disabled . | . . . . . . . Max in Single Turn . | . . . . . . . Machines Repaired . | . . . . . . . Machines Sabotaged . | . . . . . . . Overloaded Fab Kills . | . . . . . . . Hacking | -11 -10 -10 -9 -9 -9 -8 --------- Run | Jun Mat Min Mat Min Exi Min Machines Accessed 23 | . 9 . 12 1 1 . Terminals 18 | . 7 . 10 1 . . Fabricators . | . . . . . . . Repair Stations 2 | . 1 . 1 . . . Recycling Units 1 | . 1 . . . . . Scanalyzers 1 | . . . 1 . . . Garrison Access . | . . . . . . . Total Hacks 60 | . 25 . 32 2 1 . Successful 40 | . 16 . 22 1 1 . Failed 18 | . 8 . 9 1 . . Catastrophic 1 | . 1 . . . . . Database Lockouts 2 | . 1 . 1 . . . Manual 23 | . 8 . 14 1 . . Terminals 48 | . 18 . 28 2 . . Fabricators . | . . . . . . . Repair Stations 7 | . 5 . 2 . . . Recycling Units 2 | . 2 . . . . . Scanalyzers 2 | . . . 2 . . . Garrison Access . | . . . . . . . Terminal Hacks 23 | . 8 . 13 1 1 . Record 3 | . . . 2 . 1 . Part Schematic 1 | . . . . 1 . . Robot Analysis 4 | . 2 . 2 . . . Prototype ID Bank 3 | . 2 . 1 . . . Branch Access Points 1 | . 1 . . . . . Alert Level 2 | . . . 2 . . . Unreport Threat 2 | . . . 2 . . . Locate Traps 5 | . 3 . 2 . . . Zone Layout 2 | . . . 2 . . . Fabricator Hacks . | . . . . . . . Repair Station Hacks 6 | . 4 . 2 . . . Scan Component 3 | . 2 . 1 . . . Repair 3 | . 2 . 1 . . . Recycling Unit Hacks 1 | . 1 . . . . . Retrieve Components 1 | . 1 . . . . . Scanalyzer 2 | . . . 2 . . . Insert Component 1 | . . . 1 . . . Analyze 1 | . . . 1 . . . Garrison Access Hacks . | . . . . . . . Unauthorized Hacks 8 | . 3 . 5 . . . Terminals 8 | . 3 . 5 . . . Track 3 | . 1 . 2 . . . Botnet 5 | . 2 . 3 . . . Fabricators . | . . . . . . . Repair Stations . | . . . . . . . Recycling Units . | . . . . . . . Scanalyzers . | . . . . . . . Garrison Access . | . . . . . . . Data Cores Recovered . | . . . . . . . Used . | . . . . . . . Hacking Detections 19 | . 9 . 9 1 . . Full Trace Events 1 | . . . 1 . . . Feedback Events . | . . . . . . . Feedback Blocked . | . . . . . . . Robot Schematics Acquired . | . . . . . . . Robots Built . | . . . . . . . Authchips . | . . . . . . . Time . | . . . . . . . Total Robot Build Rating . | . . . . . . . Part Schematics Acquired 2 | . . . 1 1 . . Parts Built . | . . . . . . . Authchips . | . . . . . . . Time . | . . . . . . . Total Part Build Rating . | . . . . . . . Parts Repaired 3 | . 2 . 1 . . . Time 84 | . 52 . 32 . . . Parts Recycled . | . . . . . . . Recycled Matter . | . . . . . . . Retrieved Matter . | . . . . . . . Retrieved Components 2 | . 2 . . . . . Parts Scanalyzed 1 | . . . 1 . . . Part Schematics Acquired 1 | . . . 1 . . . Parts Damaged . | . . . . . . . Bothacking | -11 -10 -10 -9 -9 -9 -8 ------------ Run | Jun Mat Min Mat Min Exi Min Used RIF Installer . | . . . . . . . Robots Hacked . | . . . . . . . Non-combat . | . . . . . . . Combat . | . . . . . . . Robot Hacks Applied . | . . . . . . . Relay Couplers Released . | . . . . . . . Fabnet Peak Effective % . | . . . . . . . Robots Rewired . | . . . . . . . Allies Hacked . | . . . . . . . Hacks Repelled . | . . . . . . . Allies | -11 -10 -10 -9 -9 -9 -8 -------- Run | Jun Mat Min Mat Min Exi Min Total Allies 5 | . . 4 . 1 . . Largest Group 4 | . . 4 4 1 1 . Highest-Rated Group 71 | . . 71 71 31 31 . Highest-Rated Ally 31 | . . 31 31 31 31 . Total Orders . | . . . . . . . Ally Attacks 41 | . . 10 31 . . . Total Damage 435 | . . 113 322 . . . Kills 9 | . . 2 7 . . . Allies Corrupted . | . . . . . . . Allies Melted . | . . . . . . . Intel | -11 -10 -10 -9 -9 -9 -8 ------- Run | Jun Mat Min Mat Min Exi Min Robot Analysis Total 4 | . 2 . 2 . . . Derelict Logs Recovered 3 | . . 2 . 1 . . Drone Launches . | . . . . . . . Drone Recoveries . | . . . . . . . Exploration | -11 -10 -10 -9 -9 -9 -8 ------------- Run | Jun Mat Min Mat Min Exi Min Turns Passed 8160 | 36 1447 838 4166 1216 268 189 Spaces Moved 3685 | 11 827 507 1455 669 168 48 Core . | . . . . . . . Treads 3535 | . 688 507 1455 669 168 48 Legs . | . . . . . . . Wheels 150 | 11 139 . . . . . Hover . | . . . . . . . Flight . | . . . . . . . Fastest Speed 100 | 100 100 160 160 160 160 160 Average Speed 184 | 100 150 160 227 160 160 183 Slowest Speed 320 | 100 160 160 320 240 160 240 Overloaded Moves . | . . . . . . . Propulsion Burnouts . | . . . . . . . Robots Hopped . | . . . . . . . Cave-ins Triggered . | . . . . . . . Exploration Rate (%) 65 | 2 95 99 97 99 53 15 Regions Visited 6 Branch Regions 4 Pre-discovered Areas 3 | . . 1 . 1 1 . Known Exits Taken 1 | . 1 . . . . . Unknown Exits Taken 5 | 1 . 1 1 1 1 . Scrap Searched 2 | . . 1 . 1 . . Spaces Dug 14 | . . . 14 . . . Terrain Destroyed 72 | . 8 . 21 17 . 26 Melee . | . . . . . . . Projectile . | . . . . . . . AOE 72 | . 8 . 21 17 . 26 Terrain Rammed . | . . . . . . . Walls Destroyed . | . . . . . . . Machines Disabled . | . . . . . . . Actions | -11 -10 -10 -9 -9 -9 -8 --------- Run | Jun Mat Min Mat Min Exi Min Total 4679 | 20 961 527 2145 762 167 97 Wait 647 | . 59 12 524 52 . . Move 3679 | 10 826 506 1454 668 167 48 Hop . | . . . . . . . Pick Up 27 | . 10 . 13 2 . 2 Fast Attach 23 | . 11 . 11 1 . . Attach 13 | . . . 3 3 . 7 Detach 5 | . 3 . 1 1 . . Swap 28 | 2 4 1 16 2 . 3 Drop 36 | . 9 1 26 . . . Fire 207 | 8 36 3 93 30 . 37 Melee . | . . . . . . . Ram 1 | . 1 . . . . . Kick . | . . . . . . . Crush 13 | . 2 4 4 3 . . Escape Stasis . | . . . . . . . Rewire . | . . . . . . . Trap . | . . . . . . . Miscellaneous . | . . . . . . . Route ------- -11/Junkyard -10/Materials (discovered 5 exits: *Mat x3 / *Min / [*Sub]) -10/Mines (discovered 3 exits: *Mat x2 / [*Sub]) -9/Materials (discovered 5 exits: [*Mat x3] / *Min / [*Sto]) -9/Mines (discovered 4 exits: [*Mat x2] / *Exi / [*Zio]) -9/Exiles -8/Mines History --------- Turn | Location | Event 16 | -11/Junkyard | Discovered new exit (range 2) 37 | -11/Junkyard | Entered Materials 318 | -10/Materials | Build established: Mutant 352 | -10/Materials | Discovered new exit (range 14) 498 | -10/Materials | Discovered new exit (range 8) 607 | -10/Materials | Central database locked down 689 | -10/Materials | Discovered new exit (range 8) 962 | -10/Materials | Discovered new exit (range 5) 1037 | -10/Materials | Identified exit to Mines 1148 | -10/Materials | Repaired Lgt. Treads 1175 | -10/Materials | Repaired Lgt. Treads 1268 | -10/Materials | Discovered new exit (range 4) 1484 | -10/Materials | Entered Mines 1487 | -10/Mines | Met a Derelict testing a Signal Generator 1492 | -10/Mines | Assisted by bots powering up and referring to "LRC-V3" 1523 | -10/Mines | Learned Materials interactive machine intel 1970 | -10/Mines | Discovered new exit (range 4) 2063 | -10/Mines | Learned location of Storage (-9) 2266 | -10/Mines | Discovered new exit (range 11) 2300 | -10/Mines | Discovered new exit (range 9) 2322 | -10/Mines | Entered Materials 2322 | -9/Materials | Accompanied by 4 allies 2322 | -9/Materials | Evolved 2 slots: Utility x2 2323 | -9/Materials | Loaded intel: 18 interactive machine locations 3270 | -9/Materials | Discovered new exit (range 5) 4618 | -9/Materials | Repaired Autogun 4695 | -9/Materials | Discovered new exit (range 11) 5039 | -9/Materials | Build established: Scavenger-Mutant 5101 | -9/Materials | Discovered new exit (range 7) 5282 | -9/Materials | Discovered new exit (range 6) 5996 | -9/Materials | Build established: Mutant 6002 | -9/Materials | Discovered new exit (range 15) 6044 | -9/Materials | Central database locked down 6488 | -9/Materials | Entered Mines 6489 | -9/Mines | Assembled infested the area 6526 | -9/Mines | Core integrity fell below 50% 6576 | -9/Mines | Destroyed 8 combat bots 6797 | -9/Mines | A Derelict revealed a hidden shortcut to a safe place 6805 | -9/Mines | YI-UF0 nonchalantly dropped a Grenade Launcher on the ground 6932 | -9/Mines | Deemed a non-threat by the Exiles lab entrance 6942 | -9/Mines | Discovered new exit (range 5) 6968 | -9/Mines | Escorted by a lone wolf Derelict 7321 | -9/Mines | Discovered new exit (range 8) 7367 | -9/Mines | Discovered new exit (range 6) 7704 | -9/Mines | Entered Exiles 7704 | -9/Exiles | Accompanied by 1 ally 7743 | -9/Exiles | Met 8R-AWN 7770 | -9/Exiles | Met EX-HEX 7885 | -9/Exiles | Met EX-DEC 7893 | -9/Exiles | Learned location of Zion (-7) 7951 | -9/Exiles | Discovered new exit (range 14) 7972 | -9/Exiles | Entered Mines 8056 | -8/Mines | Core integrity fell below 20% 8096 | -8/Mines | Lost 3 parts (1p1n1u) 8161 | -8/Mines | Destroyed by S-10 Pest with Light Assault Rifle Last Messages --------------- 08087_ K-01 Serf collects debris. 08089_ Acquired 49 matter. 08092_ Acquired 42 matter. 08092_ R-06 Scavenger collects Aluminum Leg. 08095_ R-06 Scavenger collects Melee Analysis Suite. 08096_ Acquired 54 matter. 08099_ Acquired Lgt. Nuclear Core. 08099_ R-06 Scavenger collects Hvy. Assault Rifle. 08103_ Acquired Aluminum Leg. 08110_ Penetrated by Slug. 08110_ Autogun destroyed. 08113_ Imp. Assault Rifle destroyed. 08116_ Penetrated by Slug. 08126_ Lgt. Nuclear Core fried. 08126_ H-55 Commando destroyed. 08132_ Acquired 54 matter. 08158_ S-10 Pest destroyed. 08158_ Switching to secondary target: S-10 Pest. 08161_ S-10 Pest destroyed. 08161_ Switching to secondary target: S-10 Pest. Map ----- +----------------------------------------------------+ | | | | | | | | | | | ?????????????????????????????? | | ?????????????????????????????? | | ?????????????????????????????? | | ?????????????????????????????? | | ?????????????????????????????? | | ?????????????????????????????# | | ?????????????????????????##### | | ????????????????????????## # | | ?????????????????????#### | | ?????????????????????# | | ?????????????????????# ### | | ??#####??????????????# #?## | | ??# ?????????????# #??## | | ??# ""?????????????#=#???## | | ??# "??????????????# #????# | | ??# "??????????????# #????# | | ??# ??????????????# #???? | | ??# % ??????????????# #???# | | ???#s*#??????????????# #???## | | ???#=%################ #????## | | ???# @ =%= #?????? | | ???# ########## #######?????? | | ???# #????????# #???????????? | | ??# #????????# #???????????? | | ??# ????????# #???????????? | | ??# ???????? ???????????? | | ??# ???????? ???????????? | | ??# ???????? ???????????? | | ??# ???????? ???????????? | | ??# ???????? ???????????? | | ??## ##??????? ???????????? | | ???###????????? ???????????? | | ??????????????? ##???????????? | | ???????????????#?????????????? | | ?????????????????????????????? | | ?????????????????????????????? | | ?????????????????????????????? | | ?????????????????????????????? | | ?????????????????????????????? | | ?????????????????????????????? | | ?????????????????????????????? | | ?????????????????????????????? | | ?????????????????????????????? | | ?????????????????????????????? | | ?????????????????????????????? | +----------------------------------------------------+ Best States ------------- Heat Dissipation 28 Energy Generation 18 Energy Capacity 280 Matter Stores 500 Matter Capacity 500 Sight Range 16 Terrain Scan Density 10 Base Temperature (-) 100 Armor Coverage 450 Propulsion Shielding 33 Evasion (%) 40 Targeting Accuracy 16 Recoil Reduction 2 Item Schematics ----------------- Imp. Sensor Array | -9/Materials | Scanalyzed Lrg. Storage Unit | -9/Mines | Hacked Robot Schematics ------------------ None Fabricated ------------ Nothing Alien Tech Used ----------------- None Achievements -------------- None Challenges ------------ None Game ------ Seed ThrowingWeightAutogun Manual? 0 Play Time 00:29:15 Cumulative 65.2 hours Start 2023.07.28 @ 17:11:53 End 2023.07.28 @ 17:40:12 Sessions 1 Manual Loads 0 Difficulty Rogue Special Mode None Game No. 57 Rogue 57 Adventurer 0 Explorer 0 Win Type - Total 1 Types 0/0/1/0/0/0/0/0/0 Lore% 39 Gallery% 40 Achievement% 52 Wizard Run 0 Options --------- ASCII 1 Keyboard 1 Movement Arrows Keybinds 0 Fullscreen 2 Font 24/Proggy Map View 76x50 Tactical HUD 1 Map Filters NONE Filters NONE Steam 1 RUN: 700501c1-8913-44b8-9cfe-7ca096197867